bitfinex/quotes_BTCUSD_20240730
["timestamp","ask_amount","ask_price","bid_price","bid_amount"]
[1722313100300,1.28629377,66771.0,66762.0,0.000913]
[1722313100301,0.119826,66763.0,66762.0,0.000913]
[1722313101133,0.239633,66769.0,66762.0,0.000913]
[1722313101332,0.119826,66764.0,66762.0,0.000913]
[1722313101550,0.119826,66764.0,66763.0,0.0015542]
[1722313101933,0.119826,66763.0,66762.0,0.003913]
[1722313102545,0.599132,66763.0,66762.0,0.003913]
[1722313102766,0.659043,66763.0,66762.0,0.003913]
[1722313102950,0.41939,66763.0,66762.0,0.003913]
[1722313103357,0.41939,66763.0,66762.0,0.000913]
[1722313103956,0.359479,66763.0,66762.0,0.000913]
[1722313104494,0.359479,66763.0,66762.0,0.003913]
[1722313109885,0.361479,66763.0,66762.0,0.003913]
[1722313115840,0.121826,66763.0,66762.0,0.003913]
[1722313115959,0.361479,66763.0,66762.0,0.003913]
[1722313117434,0.41466707,66763.0,66762.0,0.003913]
[1722313118390,0.71872007,66763.0,66762.0,0.003913]
[1722313118828,0.41466707,66763.0,66762.0,0.003913]
[1722313119457,0.65432007,66763.0,66762.0,0.003913]
[1722313121750,0.41466707,66763.0,66762.0,0.003913]
[1722313123026,0.65432007,66763.0,66762.0,0.003913]
[1722313123505,0.41466707,66763.0,66762.0,0.003913]
[1722313132084,0.65432007,66763.0,66762.0,0.003913]
[1722313132329,0.41466707,66763.0,66762.0,0.003913]
[1722313132479,0.65432007,66763.0,66762.0,0.003913]
[1722313132678,0.41466707,66763.0,66762.0,0.003913]
[1722313134297,0.65432007,66763.0,66762.0,0.003913]
[1722313134498,0.41466707,66763.0,66762.0,0.003913]
[1722313134836,0.65432007,66763.0,66762.0,0.003913]
[1722313135038,0.41466707,66763.0,66762.0,0.003913]
[1722313136037,0.65432007,66763.0,66762.0,0.003913]
[1722313136334,0.41466707,66763.0,66762.0,0.003913]
[1722313136773,0.65432007,66763.0,66762.0,0.003913]
[1722313138087,0.92142772,66763.0,66762.0,0.003913]
[1722313138276,0.68177472,66763.0,66762.0,0.003913]
[1722313138475,0.92142772,66763.0,66762.0,0.003913]
[1722313138685,0.68177472,66763.0,66762.0,0.003913]
[1722313139660,0.68231354,66763.0,66762.0,0.003913]
[1722313141231,0.92196654,66763.0,66762.0,0.003913]
[1722313141436,0.68231354,66763.0,66762.0,0.003913]
[1722313142534,1.06815395,66763.0,66762.0,0.003913]
[1722313142737,1.48843999,66763.0,66762.0,0.003913]
[1722313143067,1.58843999,66763.0,66762.0,0.003913]
[1722313143622,1.34878699,66763.0,66762.0,0.003913]
[1722313143941,1.34878699,66763.0,66762.0,0.000913]
[1722313143942,1.41208699,66763.0,66762.0,0.000913]
[1722313144140,1.42608699,66763.0,66762.0,0.001913]
[1722313145335,1.43608699,66763.0,66762.0,0.002913]
[1722313145709,1.42608699,66763.0,66762.0,0.001913]
[1722313145907,1.42690832,66763.0,66762.0,0.001913]
[1722313146113,1.43990832,66763.0,66762.0,0.002913]
[1722313146313,1.69956132,66763.0,66762.0,0.002913]
[1722313146541,0.67285,66750.0,66749.0,0.000913]
[1722313146743,1.1682041,66750.0,66749.0,0.000913]
[1722313146978,1.01645554,66750.0,66749.0,0.000913]
[1722313147358,1.1045368,66750.0,66749.0,0.000913]
[1722313147562,0.83895,66750.0,66749.0,0.000913]
[1722313147802,0.84495,66750.0,66749.0,0.001913]
[1722313148403,0.95097655,66750.0,66749.0,0.001913]
[1722313148604,0.95197655,66750.0,66749.0,0.001913]
[1722313150436,1.08665822,66750.0,66749.0,0.001913]
[1722313151037,1.18790959,66750.0,66749.0,0.001913]
[1722313151250,1.19790959,66750.0,66749.0,0.001913]
[1722313151590,1.27938776,66750.0,66749.0,0.001913]
[1722313151998,1.27838776,66750.0,66749.0,0.001913]
[1722313152204,1.29638776,66750.0,66749.0,0.002913]
[1722313152575,1.36138776,66750.0,66749.0,0.002913]
[1722313153633,1.48999507,66750.0,66749.0,0.001913]
[1722313153854,1.35538776,66750.0,66749.0,0.001913]
[1722313154078,1.36838776,66750.0,66749.0,0.001913]
[1722313155467,1.50296392,66750.0,66749.0,0.001913]
[1722313156819,1.42046392,66750.0,66749.0,0.001913]
[1722313158246,1.28588776,66750.0,66749.0,0.001913]
[1722313158450,1.22088776,66750.0,66749.0,0.001913]
[1722313159839,1.24814354,66750.0,66749.0,0.001913]
[1722313160155,1.22088776,66750.0,66749.0,0.001913]
[1722313160452,1.24814345,66750.0,66749.0,0.001913]
[1722313162447,1.24808447,66750.0,66749.0,0.001913]
[1722313163307,1.22088776,66750.0,66749.0,0.001913]
[1722313164076,1.24799893,66750.0,66749.0,0.001913]
[1722313165184,1.22088776,66750.0,66749.0,0.001913]
[1722313167068,1.23088776,66750.0,66749.0,0.001913]
[1722313167199,1.22088776,66750.0,66749.0,0.001913]
[1722313168496,1.24798575,66750.0,66749.0,0.001913]
[1722313169137,1.24792937,66750.0,66749.0,0.001913]
[1722313169598,1.22088776,66750.0,66749.0,0.001913]
[1722313169776,1.24792937,66750.0,66749.0,0.001913]
[1722313170150,1.38253014,66750.0,66749.0,0.001913]
[1722313171075,1.38255164,66750.0,66749.0,0.001913]
[1722313172205,1.24792937,66750.0,66749.0,0.001913]
[1722313172459,1.24801904,66750.0,66749.0,0.001913]
[1722313175641,1.24804027,66750.0,66749.0,0.001913]
[1722313178183,1.39964715,66750.0,66749.0,0.001913]
[1722313178725,1.39964605,66750.0,66749.0,0.001913]
[1722313178937,1.22088776,66750.0,66749.0,0.001913]
[1722313179089,1.39973314,66750.0,66749.0,0.001913]
[1722313179457,1.39973374,66750.0,66749.0,0.001913]
[1722313179674,1.3997346,66750.0,66749.0,0.001913]
[1722313180077,1.2481277,66750.0,66749.0,0.001913]
[1722313180457,1.39973972,66750.0,66749.0,0.001913]
[1722313180810,1.2481277,66750.0,66749.0,0.001913]
[1722313181013,1.22088776,66750.0,66749.0,0.001913]
[1722313181230,1.24808069,66750.0,66749.0,0.001913]
[1722313182244,1.22088776,66750.0,66749.0,0.001913]
[1722313182445,1.24806922,66750.0,66749.0,0.001913]
[1722313184329,1.39967833,66750.0,66749.0,0.001913]
[1722313184710,1.24806922,66750.0,66749.0,0.001913]
[1722313185082,1.39967833,66750.0,66749.0,0.001913]
[1722313185306,1.24806922,66750.0,66749.0,0.001913]
[1722313185512,1.22088776,66750.0,66749.0,0.001913]
[1722313185710,1.24807725,66750.0,66749.0,0.001913]
[1722313188849,1.24806122,66750.0,66749.0,0.001913]
[1722313192256,1.22088776,66750.0,66749.0,0.001913]
[1722313192411,1.24798853,66750.0,66749.0,0.001913]
[1722313195461,0.65632894,66750.0,66749.0,0.147113]
[1722313195771,0.32888102,66750.0,66749.0,0.147113]
[1722313195983,0.14982817,66750.0,66749.0,0.147113]
[1722313196122,0.02997817,66750.0,66749.0,0.147113]
[1722313196328,0.14982817,66750.0,66749.0,0.147113]
[1722313196536,0.02997817,66750.0,66749.0,0.147113]
[1722313197184,0.73102792,66750.0,66749.0,0.147113]
[1722313197392,0.71452817,66750.0,66749.0,0.147113]
[1722313197732,0.62922817,66750.0,66749.0,0.147113]
[1722313199672,0.38952817,66750.0,66749.0,0.147113]
[1722313199885,0.021,66750.0,66749.0,0.147113]
[1722313200088,0.021,66750.0,66749.0,0.352264]
[1722313200310,0.021,66750.0,66749.0,0.95615467]
[1722313200711,0.08846331,66750.0,66749.0,0.95615467]
[1722313200982,0.08046331,66750.0,66749.0,0.95515467]
[1722313201401,0.07546331,66750.0,66749.0,0.95615026]
[1722313201613,0.07546331,66750.0,66749.0,0.47674426]
[1722313201614,0.05295171,66750.0,66749.0,0.47674426]
[1722313201723,0.04495171,66750.0,66749.0,0.71644726]
[1722313202131,0.06746331,66751.0,66750.0,0.25795]
[1722313202445,0.0449366,66751.0,66750.0,0.2595042]
[1722313203030,0.0449366,66751.0,66750.0,0.25795]
[1722313203249,0.0449366,66751.0,66750.0,0.2595042]
[1722313203518,0.0449366,66752.0,66751.0,0.1409]
[1722313204511,0.0449366,66752.0,66751.0,0.136]
[1722313204512,0.04492195,66752.0,66751.0,0.136]
[1722313205056,0.04491199,66752.0,66751.0,0.1391]
[1722313205260,0.04491199,66753.0,66749.0,0.126764]
[1722313205462,0.04491199,66753.0,66750.0,0.0015542]
[1722313205670,0.04491199,66753.0,66751.0,0.1392]
[1722313205868,0.04491199,66753.0,66752.0,0.0015542]
[1722313206074,0.04491199,66753.0,66752.0,0.1439542]
[1722313206308,0.16475499,66754.0,66752.0,0.1439542]
[1722313206526,0.40444099,66754.0,66753.0,0.1424]
[1722313206689,0.40442325,66754.0,66753.0,0.1424]
[1722313207799,0.40441624,66754.0,66753.0,0.1424]
[1722313209310,0.359529,66754.0,66753.0,0.1424]
[1722313209643,0.65445896,66754.0,66753.0,0.1424]
[1722313209826,0.41477296,66754.0,66753.0,0.1424]
[1722313210110,0.363529,66754.0,66753.0,0.1424]
[1722313210857,0.4308431,66754.0,66753.0,0.1424]
[1722313211319,0.363529,66754.0,66753.0,0.1424]
[1722313211489,0.40439923,66754.0,66753.0,0.1424]
[1722313211810,0.41439923,66754.0,66753.0,0.1424]
[1722313213266,0.18071323,66754.0,66753.0,0.1434]
[1722313213621,0.016,66754.0,66753.0,0.1434]
[1722313213841,0.016,66754.0,66753.0,0.1449542]
[1722313214663,0.006,66754.0,66753.0,0.1434]
[1722313215679,0.119841,66755.0,66753.0,0.1424]
[1722313215880,0.119841,66755.0,66754.0,0.1444542]
[1722313216536,0.119841,66755.0,66754.0,0.1429]
[1722313216738,0.04486371,66756.0,66755.0,0.0829]
[1722313216895,0.04486371,66756.0,66755.0,0.1444542]
[1722313217343,0.04486371,66756.0,66755.0,0.1429]
[1722313217552,0.119839,66756.0,66755.0,0.1429]
[1722313217700,0.16469204,66756.0,66755.0,0.1429]
[1722313218100,0.119839,66756.0,66755.0,0.1429]
[1722313218302,0.40437016,66756.0,66755.0,0.1429]
[1722313219306,0.41237016,66756.0,66755.0,0.1429]
[1722313219527,0.41537016,66756.0,66755.0,0.1429]
[1722313219806,0.41536932,66756.0,66755.0,0.1429]
[1722313220230,0.65504732,66756.0,66755.0,0.1429]
[1722313220635,0.41536932,66756.0,66755.0,0.1429]
[1722313220870,0.370517,66756.0,66755.0,0.1429]
[1722313221135,0.41536895,66756.0,66755.0,0.1429]
[1722313221857,0.65504695,66756.0,66755.0,0.1429]
[1722313224215,0.610195,66756.0,66755.0,0.1429]
[1722313224415,0.65504802,66756.0,66755.0,0.1429]
[1722313224591,0.610195,66756.0,66755.0,0.1429]
[1722313225395,0.599215,66754.0,66753.0,0.065]
[1722313225573,0.35955,66750.0,66749.0,0.000913]
[1722313225806,0.92867494,66750.0,66749.0,0.000913]
[1722313225986,0.95110618,66750.0,66749.0,0.000913]
[1722313226804,0.93571764,66750.0,66749.0,0.000913]
[1722313227005,1.04787382,66750.0,66749.0,0.000913]
[1722313227406,1.04788714,66750.0,66749.0,0.000913]
[1722313228410,0.93571764,66750.0,66749.0,0.000913]
[1722313228639,1.0479053,66750.0,66749.0,0.003913]
[1722313228793,0.93571764,66750.0,66749.0,0.003913]
[1722313228993,1.04790316,66750.0,66749.0,0.003913]
[1722313229200,1.04790521,66750.0,66749.0,0.003913]
[1722313229615,0.93571764,66750.0,66749.0,0.003913]
[1722313229816,1.04790941,66750.0,66749.0,0.003913]
[1722313230027,0.93671764,66750.0,66749.0,0.003913]
[1722313230435,1.04891256,66750.0,66749.0,0.003913]
[1722313230639,0.93671764,66750.0,66749.0,0.003913]
[1722313233746,0.60025,66750.0,66749.0,0.145213]
[1722313234151,0.69002717,66750.0,66749.0,0.145213]
[1722313234360,0.60025,66750.0,66749.0,0.145213]
[1722313234595,0.71247589,66750.0,66749.0,0.145213]
[1722313235058,0.69003684,66750.0,66749.0,0.145213]
[1722313235429,0.69003765,66750.0,66749.0,0.145213]
[1722313236497,0.60025,66750.0,66749.0,0.145213]
[1722313237684,0.71250581,66750.0,66749.0,0.145213]
[1722313238926,0.71250581,66750.0,66749.0,0.14515444]
[1722313240517,0.60025,66750.0,66749.0,0.00385444]
[1722313244229,0.60025,66750.0,66749.0,0.14875444]
[1722313245082,0.36055,66750.0,66749.0,0.14875444]
[1722313246367,0.71259662,66750.0,66749.0,0.14875444]
[1722313246609,0.60025,66750.0,66749.0,0.14875444]
[1722313248011,0.60006972,66750.0,66749.0,0.14875444]
[1722313250487,0.36036972,66750.0,66749.0,0.14875444]
[1722313254944,0.39407652,66750.0,66749.0,0.14875444]
[1722313255149,0.36036972,66750.0,66749.0,0.14875444]
[1722313258022,0.36036972,66750.0,66749.0,0.38845744]
[1722313258023,0.001,66750.0,66749.0,0.38845744]
[1722313258216,0.11337595,66750.0,66749.0,0.74801144]
[1722313258425,0.001,66750.0,66749.0,0.50986264]
[1722313258598,0.0459463,66750.0,66749.0,0.6343458]
[1722313258978,0.04594613,66750.0,66749.0,0.63278891]
[1722313259363,0.04594613,66750.0,66749.0,0.39308591]
[1722313259473,0.001,66750.0,66749.0,0.14875444]
[1722313259673,0.001,66750.0,66749.0,0.08525444]
[1722313259674,0.36055,66750.0,66749.0,0.08525444]
[1722313259894,0.47291532,66750.0,66749.0,0.08525444]
[1722313260100,0.36055,66750.0,66749.0,0.08525444]
[1722313264078,0.36055,66750.0,66749.0,0.00385444]
[1722313265404,0.36055,66750.0,66749.0,0.08685444]
[1722313265587,0.36055,66750.0,66749.0,0.15115444]
[1722313265796,0.001,66750.0,66749.0,0.15115444]
[1722313266148,0.11339846,66750.0,66749.0,0.27255964]
[1722313266344,0.11339846,66750.0,66749.0,0.39704494]
[1722313266345,0.09091626,66750.0,66749.0,0.39704494]
[1722313266677,0.09091626,66750.0,66749.0,0.27100544]
[1722313266880,0.09091626,66750.0,66749.0,0.27255964]
[1722313267099,0.09091626,66750.0,66749.0,0.27100544]
[1722313267266,0.09091626,66750.0,66749.0,0.39704492]
[1722313267449,0.09091626,66750.0,66749.0,0.27255964]
[1722313269094,0.09092324,66750.0,66749.0,0.27255964]
[1722313269464,0.001,66750.0,66749.0,0.27255964]
[1722313269662,0.09092819,66750.0,66749.0,0.27255964]
[1722313271061,0.09092879,66750.0,66749.0,0.27255964]
[1722313271466,0.001,66750.0,66749.0,0.27255964]
[1722313271705,0.001,66750.0,66749.0,0.15270864]
[1722313272110,0.001,66750.0,66749.0,0.15115444]
[1722313272934,0.001,66750.0,66749.0,0.27100544]
[1722313273312,0.001,66750.0,66749.0,0.15115444]
[1722313273528,0.09092887,66750.0,66749.0,0.15115444]
[1722313273722,0.09092887,66750.0,66749.0,0.27100544]
[1722313273922,0.001,66750.0,66749.0,0.27100544]
[1722313276625,0.001,66750.0,66749.0,0.15115444]
[1722313277623,0.12085,66750.0,66749.0,0.15115444]
[1722313278539,0.001,66750.0,66749.0,0.15115444]
[1722313279938,0.001,66750.0,66749.0,0.08685444]
[1722313280462,0.00183,66750.0,66749.0,0.08685444]
[1722313280680,0.12168,66750.0,66749.0,0.08685444]
[1722313282656,0.36138,66750.0,66749.0,0.08685444]
[1722313285842,0.36138,66750.0,66749.0,0.00385444]
[1722313286643,0.60108,66750.0,66749.0,0.00385444]
[1722313286844,0.36138,66750.0,66749.0,0.00385444]
[1722313289344,0.36138,66750.0,66749.0,0.06825444]
[1722313293956,0.36138,66750.0,66749.0,0.00385444]
[1722313296107,0.49632605,66750.0,66749.0,0.00385444]
[1722313296315,0.36138,66750.0,66749.0,0.00385444]
[1722313296472,0.49632605,66750.0,66749.0,0.00385444]
[1722313297700,0.36138,66750.0,66749.0,0.00385444]
[1722313298034,0.12168,66750.0,66749.0,0.00385444]
[1722313298250,0.00183,66750.0,66749.0,0.00385444]
[1722313298601,0.00183,66750.0,66749.0,0.08355444]
[1722313299018,0.12168,66750.0,66749.0,0.08355444]
[1722313310979,0.14517854,66750.0,66749.0,0.08355444]
[1722313312691,0.68667854,66750.0,66749.0,0.00385444]
[1722313312892,0.80894468,66750.0,66749.0,0.00385444]
[1722313313270,0.83543053,66750.0,66749.0,0.00385444]
[1722313313468,0.80894468,66750.0,66749.0,0.00385444]
[1722313313705,0.81254468,66750.0,66749.0,0.00385444]
[1722313313905,0.74684468,66750.0,66749.0,0.00385444]
[1722313314111,0.38487854,66750.0,66749.0,0.00385444]
[1722313314496,0.62457854,66750.0,66749.0,0.00385444]
[1722313315127,0.60108,66750.0,66749.0,0.00385444]
[1722313318662,0.62457875,66750.0,66749.0,0.00385444]
[1722313319239,0.60108,66750.0,66749.0,0.00385444]
[1722313322278,0.62457875,66750.0,66749.0,0.00385444]
[1722313322641,0.60108,66750.0,66749.0,0.00385444]
[1722313324005,0.36138,66750.0,66749.0,0.00385444]
[1722313325788,0.38487871,66750.0,66749.0,0.00385444]
[1722313327025,0.36138,66750.0,66749.0,0.00385444]
[1722313327200,0.00183,66750.0,66749.0,0.14365444]
[1722313327716,0.00183,66750.0,66749.0,0.14520864]
[1722313327984,0.13683511,66750.0,66749.0,0.14520864]
[1722313329111,0.13683511,66750.0,66749.0,0.14365444]
[1722313329463,0.13683511,66750.0,66749.0,0.14520864]
[1722313329464,0.00183,66750.0,66749.0,0.14520864]
[1722313330298,0.02532843,66750.0,66749.0,0.14520864]
[1722313330866,0.00183,66750.0,66749.0,0.14520864]
[1722313332040,0.00183,66750.0,66749.0,0.14365444]
[1722313332241,0.00183,66750.0,66749.0,0.07985444]
[1722313333364,0.36138,66750.0,66749.0,0.07985444]
[1722313333565,0.36138,66750.0,66749.0,0.00385444]
[1722313333996,0.38487771,66750.0,66749.0,0.00385444]
[1722313335584,0.12168,66750.0,66749.0,0.00385444]
[1722313339024,0.36138,66750.0,66749.0,0.00385444]
[1722313340208,0.38487878,66750.0,66749.0,0.00385444]
[1722313344616,0.02532878,66750.0,66749.0,0.00385444]
[1722313345119,0.14517878,66750.0,66749.0,0.00385444]
[1722313345331,0.14517878,66750.0,66749.0,0.08215444]
[1722313347806,0.28018306,66750.0,66749.0,0.08215444]
[1722313348016,0.14517878,66750.0,66749.0,0.08215444]
[1722313348631,0.38487878,66750.0,66749.0,0.08215444]
[1722313349108,0.12168,66750.0,66749.0,0.08215444]
[1722313351712,0.00183,66750.0,66749.0,0.08215444]
[1722313352514,0.02532843,66750.0,66749.0,0.08215444]
[1722313352738,0.00183,66750.0,66749.0,0.08215444]
[1722313354041,0.12168,66750.0,66749.0,0.08215444]
[1722313354247,0.11668,66750.0,66749.0,0.08215444]
[1722313354478,0.13499632,66752.0,66749.0,0.08215444]
[1722313354682,0.13499632,66752.0,66750.0,0.0015542]
[1722313354683,0.119849,66751.0,66750.0,0.0015542]
[1722313356160,0.14334743,66751.0,66750.0,0.0015542]
[1722313356383,0.14534743,66751.0,66750.0,0.0015542]
[1722313357163,0.14534743,66751.0,66750.0,0.0035542]
[1722313357364,0.121849,66751.0,66750.0,0.0035542]
[1722313359336,0.361545,66751.0,66750.0,0.0035542]
[1722313359942,0.121849,66751.0,66750.0,0.0035542]
[1722313360354,0.361545,66751.0,66750.0,0.0035542]
[1722313360563,0.121849,66751.0,66750.0,0.0035542]
[1722313361185,0.361545,66751.0,66750.0,0.0035542]
[1722313361974,0.38504343,66751.0,66750.0,0.0035542]
[1722313363378,0.14534743,66751.0,66750.0,0.0035542]
[1722313363801,0.14534743,66751.0,66750.0,0.0678542]
[1722313364509,0.14534743,66751.0,66750.0,0.0663]
[1722313364725,0.14534743,66751.0,66750.0,0.0678542]
[1722313365131,0.14534743,66751.0,66750.0,0.0663]
[1722313365371,0.14534743,66751.0,66750.0,0.0678542]
[1722313367833,0.121849,66751.0,66750.0,0.0678542]
[1722313368240,0.121849,66751.0,66750.0,0.0663]
[1722313369822,0.121849,66751.0,66750.0,0.0678542]
[1722313371484,0.02549826,66751.0,66750.0,0.0678542]
[1722313371708,0.02549826,66751.0,66750.0,0.5942042]
[1722313371915,0.02549826,66751.0,66750.0,0.59265]
[1722313371916,0.002,66751.0,66750.0,0.59265]
[1722313372807,0.002,66751.0,66750.0,0.83235]
[1722313373009,0.002,66751.0,66750.0,0.95683713]
[1722313373232,0.11447827,66751.0,66750.0,0.95683713]
[1722313373421,0.002,66751.0,66750.0,0.95683713]
[1722313373971,0.002,66751.0,66750.0,0.95483713]
[1722313374411,0.002,66751.0,66750.0,0.95783713]
[1722313374841,0.002,66751.0,66750.0,0.95483713]
[1722313375014,0.002,66751.0,66750.0,0.95883713]
[1722313375172,0.11247466,66752.0,66751.0,0.504744]
[1722313375379,0.11247466,66753.0,66752.0,0.504739]
[1722313375674,0.11247466,66753.0,66752.0,0.590039]
[1722313375994,0.13597209,66753.0,66752.0,0.590039]
[1722313376961,0.02349743,66753.0,66752.0,0.590039]
[1722313377167,0.13593443,66753.0,66752.0,0.590039]
[1722313377561,0.13592498,66753.0,66752.0,0.590039]
[1722313378334,0.11442755,66753.0,66752.0,0.590039]
[1722313379033,0.11441906,66753.0,66752.0,0.590039]
[1722313379235,0.002,66753.0,66752.0,0.590039]
[1722313380505,0.002,66753.0,66752.0,0.829732]
[1722313381388,0.09192796,66753.0,66752.0,0.829732]
[1722313381624,0.11542503,66753.0,66752.0,0.590039]
[1722313381826,0.09192796,66753.0,66752.0,0.590039]
[1722313382021,0.002,66753.0,66752.0,0.590039]
[1722313382224,0.09192187,66753.0,66752.0,0.590039]
[1722313382925,0.002,66753.0,66752.0,0.590039]
[1722313383146,0.09191655,66753.0,66752.0,0.265046]
[1722313384025,0.09191655,66753.0,66752.0,0.267046]
[1722313385126,0.1154137,66753.0,66752.0,0.267046]
[1722313385324,0.02549715,66753.0,66752.0,0.267046]
[1722313386175,0.1154021,66753.0,66752.0,0.267046]
[1722313386341,0.02549715,66753.0,66752.0,0.267046]
[1722313386791,0.02549715,66753.0,66752.0,0.0827]
[1722313386997,0.52613015,66753.0,66752.0,0.002]
[1722313389174,0.87985556,66753.0,66752.0,0.002]
[1722313389997,0.76581915,66753.0,66752.0,0.002]
[1722313397583,0.68621915,66753.0,66752.0,0.002]
[1722313397968,0.38503015,66753.0,66752.0,0.002]
[1722313398167,0.02549715,66753.0,66752.0,0.002]
[1722313398373,0.02549715,66753.0,66752.0,0.1431]
[1722313398374,0.13789552,66753.0,66752.0,0.1431]
[1722313398782,0.02549715,66753.0,66752.0,0.1431]
[1722313399242,0.11541157,66753.0,66752.0,0.1431]
[1722313399678,0.11540978,66753.0,66752.0,0.1431]
[1722313400190,0.11540978,66753.0,66752.0,0.262946]
[1722313400390,0.09191263,66753.0,66752.0,0.262946]
[1722313402536,0.002,66753.0,66752.0,0.262946]
[1722313402738,0.09190378,66753.0,66752.0,0.262946]
[1722313403864,0.11540111,66753.0,66752.0,0.262946]
[1722313404193,0.02549733,66753.0,66752.0,0.262946]
[1722313405030,0.002,66753.0,66752.0,0.1431]
[1722313406247,0.09189882,66753.0,66752.0,0.1431]
[1722313406450,0.09190076,66753.0,66752.0,0.1431]
[1722313407967,0.002,66753.0,66752.0,0.1431]
[1722313408173,0.11539985,66753.0,66752.0,0.1431]
[1722313408842,0.11622985,66753.0,66752.0,0.1431]
[1722313409047,0.02622985,66753.0,66752.0,0.1431]
[1722313409234,0.09175515,66753.0,66752.0,0.1446542]
[1722313409590,0.02432736,66753.0,66752.0,0.1446542]
[1722313410220,0.02432736,66753.0,66752.0,0.1431]
[1722313412440,0.14417136,66753.0,66752.0,0.1431]
[1722313413285,0.18810869,66753.0,66752.0,0.1431]
[1722313415768,0.18811782,66753.0,66752.0,0.1431]
[1722313416234,0.18811782,66753.0,66752.0,0.1451]
[1722313416428,0.18812186,66753.0,66752.0,0.1451]
[1722313416631,0.1441714,66753.0,66752.0,0.1451]
[1722313417418,0.3838604,66753.0,66752.0,0.1451]
[1722313417999,0.3838604,66753.0,66752.0,0.0803]
[1722313418443,0.1441714,66753.0,66752.0,0.0803]
[1722313421889,0.120674,66753.0,66752.0,0.0803]
[1722313424976,0.11325542,66753.0,66752.0,0.0803]
[1722313425177,0.11426512,66753.0,66752.0,0.27138102]
[1722313425580,0.14417153,66753.0,66752.0,0.1469]
[1722313427327,0.02432753,66753.0,66752.0,0.27138233]
[1722313427520,0.13675423,66753.0,66752.0,0.27138253]
[1722313427758,0.13675423,66753.0,66752.0,0.1469]
[1722313427904,0.25659823,66753.0,66752.0,0.1469]
[1722313428112,0.14417153,66753.0,66752.0,0.1469]
[1722313430828,0.14399123,66753.0,66752.0,0.1469]
[1722313432638,0.02414723,66753.0,66752.0,0.1469]
[1722313432845,0.02414723,66753.0,66752.0,0.266746]
[1722313433116,0.02414723,66753.0,66752.0,0.1469]
[1722313433267,0.02414723,66753.0,66752.0,0.27293389]
[1722313433473,0.02414723,66753.0,66752.0,0.39277989]
[1722313433681,0.02414723,66753.0,66752.0,0.51107269]
[1722313433682,0.11409121,66753.0,66752.0,0.51107269]
[1722313433890,0.02414723,66753.0,66752.0,1.14424473]
[1722313434048,0.02414723,66753.0,66752.0,1.66955832]
[1722313434252,0.02414723,66753.0,66752.0,1.67111252]
[1722313434679,0.0006497,66753.0,66752.0,1.67111252]
[1722313435303,0.0006497,66753.0,66752.0,1.37101224]
[1722313435512,0.0006497,66753.0,66752.0,1.67706856]
[1722313435753,0.0016497,66753.0,66752.0,1.67706856]
[1722313436555,0.0016497,66753.0,66752.0,1.79166246]
[1722313436752,0.0016497,66753.0,66752.0,1.55220296]
[1722313436955,0.0016497,66753.0,66752.0,1.55020296]
[1722313437811,0.0016497,66753.0,66752.0,1.57320296]
[1722313438127,0.02514357,66753.0,66752.0,1.57320296]
[1722313438543,0.02514357,66753.0,66752.0,1.44875804]
[1722313438774,0.02514357,66753.0,66752.0,1.57320968]
[1722313438976,0.02514357,66753.0,66752.0,1.57520968]
[1722313439331,0.02514357,66753.0,66752.0,1.57320968]
[1722313439741,0.02614357,66753.0,66752.0,1.46275804]
[1722313440090,0.02614357,66753.0,66752.0,1.58720968]
[1722313440990,0.02614357,66753.0,66752.0,1.58812268]
[1722313441991,0.02614357,66753.0,66752.0,1.58812267]
[1722313442444,0.02614357,66753.0,66752.0,1.46367104]
[1722313442648,0.02614357,66753.0,66752.0,1.58812267]
[1722313443122,0.0026497,66753.0,66752.0,1.58812267]
[1722313443759,0.0026497,66753.0,66752.0,1.50282267]
[1722313443962,0.0026497,66753.0,66752.0,1.58812267]
[1722313444253,0.0026497,66753.0,66752.0,1.46367104]
[1722313444381,0.0026497,66753.0,66752.0,1.58812278]
[1722313444718,0.0026497,66753.0,66752.0,1.46367104]
[1722313444926,0.0026497,66753.0,66752.0,1.58812278]
[1722313445506,0.0026497,66753.0,66752.0,1.59812278]
[1722313446095,0.0026497,66753.0,66752.0,2.07762916]
[1722313446334,0.02614309,66753.0,66752.0,2.07762916]
[1722313447149,0.02614309,66753.0,66752.0,2.06562916]
[1722313447319,0.02614309,66753.0,66752.0,1.82781578]
[1722313447665,0.02614309,66753.0,66752.0,1.83781578]
[1722313448090,0.02614309,66753.0,66752.0,1.83780754]
[1722313448290,0.02614309,66753.0,66752.0,1.83980754]
[1722313449234,0.04485343,66783.0,66761.0,1.25527]
[1722313449437,0.04485343,66786.0,66761.0,1.7909937]
[1722313449649,0.04485343,66787.0,66761.0,1.8139937]
[1722313450089,0.10865343,66788.0,66761.0,1.8139937]
[1722313450294,0.0638,66788.0,66761.0,1.8139937]
[1722313450740,0.44444115,66791.0,66790.0,0.119778]
[1722313450921,0.44444115,66791.0,66790.0,0.205078]
[1722313451047,0.00083,66794.0,66790.0,0.205078]
[1722313451689,0.00083,66794.0,66791.0,0.119776]
[1722313451890,0.00083,66794.0,66790.0,0.0853]
[1722313452096,0.002,66791.0,66790.0,0.207078]
[1722313452291,0.00083,66794.0,66790.0,0.0873]
[1722313452512,0.00083,66794.0,66790.0,0.326856]
[1722313452718,0.00083,66794.0,66786.0,0.31657]
[1722313452719,0.00583,66794.0,66793.0,0.205073]
[1722313452895,0.00583,66794.0,66793.0,0.444619]
[1722313453097,0.00583,66794.0,66793.0,0.467619]
[1722313453298,0.00583,66794.0,66793.0,0.615319]
[1722313453299,0.00083,66794.0,66793.0,0.615319]
[1722313454528,0.00083,66794.0,66793.0,0.228073]
[1722313454750,0.00083,66794.0,66793.0,0.1083]
[1722313454950,0.00083,66794.0,66793.0,0.228073]
[1722313456416,0.00083,66794.0,66793.0,0.233073]
[1722313458035,0.00083,66794.0,66793.0,0.0903]
[1722313458677,0.00083,66794.0,66793.0,0.005]
[1722313459971,0.02431394,66794.0,66793.0,0.005]
[1722313462895,0.14408494,66794.0,66793.0,0.005]
[1722313463094,0.08861394,66794.0,66793.0,0.005]
[1722313463357,0.06513,66794.0,66793.0,0.005]
[1722313464435,0.00083,66794.0,66793.0,0.124773]
[1722313464639,0.00083,66794.0,66793.0,0.005]
[1722313465084,0.00083,66794.0,66793.0,0.124773]
[1722313466389,0.00083,66794.0,66793.0,0.005]